bitfinex/quotes_ETHUSD_20251125
["timestamp","ask_amount","ask_price","bid_price","bid_amount"]
[1764106879082,0.4999,2945.7,2945.6,1.17739411]
[1764106879252,0.002,2945.7,2945.6,1.20979411]
[1764106879655,0.002,2945.7,2945.6,5.10438818]
[1764106880053,0.4999,2945.7,2945.6,4.12048818]
[1764106880449,0.002,2945.7,2945.6,4.12048818]
[1764106881075,0.002,2945.7,2945.6,3.39489407]
[1764106881377,0.4872,2945.7,2944.9,5.44664474]
[1764106881579,0.002,2945.7,2945.0,3.61047704]
[1764106881762,0.002,2945.7,2945.1,0.72559411]
[1764106882081,0.002,2945.7,2945.6,0.4699]
[1764106882981,0.002,2945.7,2945.6,4.59038818]
[1764106883279,0.002,2945.7,2945.6,5.11303712]
[1764106883647,0.002,2945.7,2945.6,5.07908818]
[1764106883955,0.002,2945.7,2945.6,5.48459218]
[1764106884156,0.002,2945.7,2945.6,5.57895218]
[1764106884768,0.002,2945.7,2945.6,5.48459218]
[1764106885481,0.002,2945.7,2945.6,5.57895218]
[1764106886673,0.002,2945.7,2945.6,6.10954916]
[1764106887856,3.39306879,2947.2,2945.6,6.10954916]
[1764106887857,0.4536,2947.2,2946.2,0.09436]
[1764106888072,0.76939791,2947.1,2946.3,0.171]
[1764106888266,0.76939791,2947.1,2946.3,0.386]
[1764106888267,0.31579791,2947.0,2946.3,0.386]
[1764106888464,0.31579791,2946.9,2946.3,1.40583407]
[1764106888682,0.31579791,2946.8,2946.3,1.89453407]
[1764106888989,0.1944,2946.9,2946.3,0.215]
[1764106889151,0.31596358,2946.8,2946.5,0.72559411]
[1764106889353,0.31624652,2946.7,2946.5,0.72559411]
[1764106889553,0.72846707,2947.2,2946.5,0.72559411]
[1764106889788,1.04469925,2947.1,2946.6,0.4699]
[1764106889989,0.215,2947.6,2947.0,5.42684474]
[1764106889990,0.9170942,2947.6,2947.0,5.42684474]
[1764106890206,0.4536,2948.5,2947.7,0.405504]
[1764106890375,0.4536,2948.4,2947.7,0.215]
[1764106890574,0.4536,2948.4,2947.6,0.94059411]
[1764106890855,0.1944,2948.6,2947.8,0.92167901]
[1764106891053,0.1944,2948.7,2948.3,0.4699]
[1764106891380,0.648,2948.9,2948.4,6.7833401]
[1764106891689,0.00515651,2949.0,2948.5,1.83479811]
[1764106891866,0.00515651,2949.0,2948.8,4.95694474]
[1764106892268,0.00515651,2949.0,2948.8,0.215]
[1764106892578,0.00515651,2949.0,2948.9,0.4699]
[1764106892756,0.00515651,2949.0,2948.9,0.9586]
[1764106893154,0.00515651,2949.0,2948.9,4.58658909]
[1764106893454,0.00515651,2949.0,2948.9,0.72559411]
[1764106894086,0.94395651,2949.0,2947.8,0.4887]
[1764106894292,0.3374,2948.9,2948.3,0.72559411]
[1764106894491,0.791,2948.9,2948.3,0.72559411]
[1764106895287,0.791,2948.9,2948.5,0.72559411]
[1764106895693,0.3374,2948.9,2948.5,0.72559411]
[1764106895862,0.4818,2948.6,2947.9,4.95694474]
[1764106896061,0.1464,2948.5,2948.0,4.33272436]
[1764106896596,0.4536,2948.8,2948.1,0.1723]
[1764106897095,0.4536,2948.8,2948.0,7.72485461]
[1764106897493,3.84480998,2948.8,2948.0,4.11772403]
[1764106898000,0.4536,2948.7,2948.0,4.11772403]
[1764106898301,0.4536,2948.7,2947.7,0.72559411]
[1764106898466,0.215,2948.8,2948.0,0.72559411]
[1764106898666,0.00515651,2949.0,2948.0,0.94059411]
[1764106898896,0.00515651,2949.0,2948.7,0.4699]
[1764106899299,0.00515651,2949.0,2948.8,6.78241996]
[1764106899470,0.00515651,2949.0,2948.9,0.4699]
[1764106899674,0.00515651,2949.0,2948.9,6.15243885]
[1764106899881,0.00515651,2949.0,2948.9,6.64113885]
[1764106900081,0.00515651,2949.0,2948.9,7.04664285]
[1764106900885,0.00515651,2949.0,2948.9,0.72559411]
[1764106901082,0.00515651,2949.0,2948.8,0.215]
[1764106901402,0.143,2948.9,2948.7,4.11685141]
[1764106901576,0.00515651,2949.0,2948.7,7.5081764]
[1764106901775,0.00515651,2949.0,2948.7,8.0912364]
[1764106901982,0.00515651,2949.0,2948.9,0.4699]
[1764106902504,0.00515651,2949.0,2948.9,7.04664285]
[1764106902704,0.00515651,2949.0,2948.9,6.77294285]
[1764106902902,0.00515651,2949.0,2948.9,0.72559411]
[1764106902903,0.49035651,2949.0,2948.9,0.72559411]
[1764106903113,0.94395651,2949.0,2948.0,3.39205843]
[1764106903412,0.00515651,2949.0,2948.9,4.58658909]
[1764106903569,0.00515651,2949.0,2948.9,5.07528909]
[1764106903775,0.00515651,2949.0,2948.9,4.11668909]
[1764106903976,0.94395651,2949.0,2948.9,0.72559411]
[1764106904191,0.94395651,2949.0,2948.7,3.3912133]
[1764106904805,0.1939,2948.8,2948.6,0.72559411]
[1764106905012,0.5966,2948.9,2948.6,0.72559411]
[1764106905217,0.4852,2948.7,2948.4,3.39163715]
[1764106905632,0.1939,2948.5,2948.0,3.39211678]
[1764106905812,0.4823,2948.4,2947.8,0.215]
[1764106906185,3.39134578,2948.7,2947.6,6.78518116]
[1764106906186,0.1968,2947.9,2947.6,6.78518116]
[1764106906915,0.1968,2947.9,2947.7,0.72559411]
[1764106907089,0.1968,2947.9,2947.6,6.78518116]
[1764106907090,0.648,2947.9,2947.6,3.39259058]
[1764106907296,0.4852,2947.7,2947.6,3.39259058]
[1764106907494,0.4852,2947.7,2947.6,4.11818469]
[1764106907821,0.9388,2947.7,2947.1,3.39308513]
[1764106908121,0.1939,2947.6,2947.2,0.72559411]
[1764106908288,0.6475,2947.6,2947.2,0.72559411]
[1764106908624,0.1944,2947.9,2947.3,0.1723]
[1764106909187,0.648,2947.9,2947.2,0.72559411]
[1764106909404,0.1944,2948.0,2947.2,0.72559411]
[1764106909696,0.4536,2948.3,2947.5,0.72559411]
[1764106910298,0.4536,2948.3,2947.5,1.19749411]
[1764106910497,0.4536,2948.3,2947.5,1.29185411]
[1764106910736,0.4536,2948.3,2947.5,0.72559411]
[1764106911601,3.84540653,2948.3,2947.5,0.72559411]
[1764106911805,0.6362,2947.6,2947.1,6.78633232]
[1764106912022,0.2369,2947.5,2947.2,0.72559411]
[1764106912815,0.4517,2947.3,2947.1,3.60816616]
[1764106913017,0.1845,2947.9,2947.2,0.72559411]
[1764106913239,0.1845,2947.9,2947.2,1.19149411]
[1764106913438,0.6819,2947.9,2947.2,1.19149411]
[1764106914227,6.78361306,2948.3,2947.4,0.72559411]
[1764106914228,0.4974,2948.3,2947.4,0.72559411]
[1764106914551,0.4974,2948.2,2947.4,5.68253885]
[1764106915053,3.39135463,2948.7,2947.5,0.215]
[1764106915244,0.4974,2948.5,2947.5,0.30936]
[1764106915443,0.31567511,2948.4,2947.5,0.78126]
[1764106916223,0.31567511,2948.4,2947.7,0.72559411]
[1764106916442,0.4974,2948.5,2947.7,0.72559411]
[1764106916619,0.4994,2948.8,2948.0,0.72559411]
[1764106917152,0.4994,2948.8,2948.1,0.1729]
[1764106917352,0.31631992,2948.7,2948.1,0.1729]
[1764106917741,0.31631992,2948.7,2948.0,0.72559411]
[1764106917742,0.4974,2948.7,2948.0,0.72559411]
[1764106918254,3.88874211,2948.7,2947.8,0.1729]
[1764106918452,3.39329035,2948.8,2947.5,1.13109811]
[1764106918453,0.81395682,2948.6,2947.9,0.215]
[1764106918757,0.4974,2948.6,2947.9,0.215]
[1764106919350,0.31686104,2948.5,2947.9,0.215]
[1764106919552,0.4974,2948.6,2947.9,0.215]
[1764106919757,0.31686105,2948.5,2947.9,0.215]
[1764106919965,0.4974,2948.6,2947.9,0.215]
[1764106920167,0.31686105,2948.5,2947.9,0.215]
[1764106920366,0.4974,2948.6,2947.9,3.392187]
[1764106920567,0.4974,2948.6,2947.4,0.215]
[1764106920568,0.4555,2948.0,2947.4,0.215]
[1764106921745,0.1922,2947.9,2947.4,0.215]
[1764106922242,0.6675,2947.9,2947.4,0.215]
[1764106922441,0.6675,2947.9,2947.6,0.72559411]
[1764106924244,0.1922,2947.9,2947.6,0.72559411]
[1764106924445,0.1922,2947.9,2947.6,4.11806969]
[1764106924689,0.4753,2948.6,2947.6,12.24290817]
[1764106924845,0.31692973,2948.5,2948.0,4.7322479]
[1764106925044,0.4753,2948.5,2948.0,4.7322479]
[1764106925356,0.4773,2948.8,2948.1,0.72559411]
[1764106925671,0.531918,2948.7,2948.1,0.72559411]
[1764106925872,0.531918,2948.7,2947.6,3.39247558]
[1764106925873,0.4555,2948.2,2947.6,3.39247558]
[1764106926075,0.2041,2948.1,2947.6,3.39247558]
[1764106926289,0.7303353,2948.5,2947.0,0.406504]
[1764106926290,0.6451,2947.7,2947.0,0.406504]
[1764106926446,0.6451,2947.7,2947.0,0.001]
[1764106926447,0.2066,2947.5,2947.0,0.001]
[1764106926647,0.4753,2947.6,2947.0,0.001]
[1764106926947,0.4072,2947.7,2947.0,0.72659411]
[1764106927150,0.4555,2947.1,2947.0,0.001]
[1764106927347,1.46280308,2947.1,2947.0,0.001]
[1764106927580,2.19270964,2947.1,2946.7,0.001]
[1764106927778,0.3953,2946.8,2946.7,0.001]
[1764106928009,0.71230308,2946.8,2945.5,4.7322479]
[1764106928152,0.79230308,2946.7,2945.6,0.72559411]
[1764106928355,6.78771422,2946.5,2945.6,4.12043075]
[1764106928568,6.78771422,2946.5,2945.6,3.39483664]
[1764106928882,6.78771422,2946.5,2945.7,0.72559411]
[1764106928883,0.4753,2946.4,2945.7,0.72559411]
[1764106929048,0.4753,2946.4,2945.2,4.9472479]
[1764106929243,0.4753,2946.4,2945.3,3.39523987]
[1764106929487,0.4753,2946.4,2945.4,0.72559411]
[1764106929656,0.4753,2946.4,2945.3,6.79047974]
[1764106929861,0.4753,2946.4,2945.4,0.72559411]
[1764106930462,3.39408749,2946.3,2945.4,4.12061243]
[1764106930861,0.4753,2946.2,2945.4,4.12061243]
[1764106931172,0.215,2946.1,2945.4,4.12061243]
[1764106931373,0.215,2946.1,2945.4,7.51573703]
[1764106931583,0.4753,2946.0,2945.4,0.72559411]
[1764106931980,0.1922,2945.9,2945.4,4.12070043]
[1764106932285,0.1922,2946.2,2945.4,4.12070043]
[1764106932463,0.4753,2946.1,2945.4,4.12070043]
[1764106932784,0.4753,2946.1,2945.4,7.51582503]
[1764106933748,0.1922,2946.5,2945.7,0.72559411]
[1764106933953,0.215,2946.4,2945.7,0.72559411]
[1764106934562,0.1922,2946.8,2945.8,6.78932716]
[1764106934768,0.215,2946.7,2946.3,0.6278]
[1764106934970,0.6903,2946.7,2945.9,0.89859411]
[1764106935168,0.4753,2946.6,2945.9,0.72559411]
[1764106935591,0.215,2946.7,2945.9,0.72559411]
[1764106935759,0.215,2946.7,2946.0,0.4708]
[1764106935962,0.4753,2946.7,2945.9,0.72559411]
[1764106936572,0.4753,2946.7,2946.0,6.78886624]
[1764106940292,0.002,2947.5,2946.6,0.4915]
[1764106940468,0.4953,2947.3,2946.6,0.4915]
[1764106940882,0.4953,2947.3,2946.4,4.7322479]
[1764106941081,0.1919,2946.5,2946.1,0.72559411]
[1764106941285,0.1919,2946.5,2946.0,6.78886624]
[1764106941286,0.1919,2946.5,2946.0,3.39443312]
[1764106941458,0.6872,2946.5,2946.0,3.39443312]
[1764106941664,0.1919,2946.5,2946.0,3.39443312]
[1764106941925,0.1919,2946.5,2945.9,7.92019481]
[1764106942566,0.4953,2946.4,2945.9,4.12014246]
[1764106943567,6.78610206,2947.2,2945.9,7.51469081]
[1764106943811,0.1921,2946.9,2946.2,4.7322479]
[1764106943969,0.4953,2946.8,2946.2,8.1264102]
[1764106944472,0.4953,2946.8,2946.2,11.5206129]
[1764106944997,0.4953,2946.8,2946.2,8.1264102]
[1764106945803,0.4953,2946.8,2946.2,11.5206129]
[1764106947080,0.4953,2946.8,2946.2,8.1264102]
[1764106947293,0.4953,2946.8,2946.2,11.5206129]
[1764106947977,0.216,2946.7,2946.2,11.5206129]
[1764106949113,0.7113,2946.7,2946.2,11.5206129]
[1764106949821,0.216,2946.7,2946.2,6.788365]
[1764106950003,0.4953,2946.6,2946.2,3.3941623]
[1764106950309,0.4953,2946.6,2946.2,6.788365]
[1764106950513,0.4953,2946.6,2946.2,3.3941623]
[1764106950687,0.4953,2946.6,2946.2,6.788365]
[1764106950886,0.4953,2946.6,2946.2,3.3941623]
[1764106951296,0.4953,2946.6,2946.2,6.788365]
[1764106951620,0.216,2946.7,2946.2,6.788365]
[1764106951913,0.216,2946.6,2946.2,3.3941623]
[1764106952102,0.4701,2946.3,2946.2,4.11975641]
[1764106952303,0.9654,2946.3,2945.9,0.001]
[1764106952509,0.1723,2946.1,2946.0,0.72559411]
[1764106953210,0.1723,2946.1,2946.0,4.12002723]
[1764106954721,0.1723,2946.1,2946.0,0.72559411]
[1764106955035,0.4953,2946.5,2946.0,4.12002723]
[1764106955213,0.4953,2946.4,2946.0,4.12002723]
[1764106957128,0.31800753,2946.3,2946.0,4.12002723]
[1764106957338,0.4953,2946.4,2946.0,4.12002723]
[1764106957517,0.31800755,2946.3,2946.0,4.12002723]
[1764106957840,0.4953,2946.4,2946.0,4.12002723]
[1764106958038,0.31800754,2946.3,2946.0,4.12002723]
[1764106958238,0.4953,2946.4,2946.0,4.12002723]
[1764106958537,0.31801108,2946.3,2946.0,4.12002723]
[1764106958707,0.4953,2946.4,2946.0,4.12002723]
[1764106958908,0.31801108,2946.3,2946.0,4.12002723]
[1764106959112,0.4953,2946.4,2946.0,4.12002723]
[1764106959314,0.81333703,2946.3,2946.0,4.12002723]
[1764106959515,0.4953,2946.3,2946.0,4.12002723]
[1764106959854,0.4953,2946.3,2946.0,7.51446035]
[1764106960426,4.1050992,2946.6,2946.0,7.51446035]
[1764106960637,0.53408609,2946.5,2946.2,4.7322479]
[1764106960831,0.216,2946.6,2946.4,0.4915]
[1764106961224,0.216,2946.7,2946.6,3.39374193]
[1764106961427,0.53410487,2946.7,2946.6,3.39374193]
[1764106961746,0.31810487,2946.7,2946.6,8.61748983]
[1764106961945,0.002,2946.8,2946.6,12.49103176]
[1764106962121,0.002,2946.8,2946.7,0.4915]
[1764106962326,0.9428,2946.7,2946.5,0.72559411]
[1764106962545,0.4973,2946.8,2946.5,0.72559411]
[1764106962852,0.4973,2946.8,2946.6,0.4915]
[1764106962853,0.002,2946.8,2946.6,0.4915]
[1764106963057,0.002,2946.8,2946.7,0.4915]
[1764106963220,0.32016725,2946.8,2946.7,0.4915]
[1764106963424,0.32016725,2946.8,2946.7,3.88512676]
[1764106964335,0.002,2946.8,2946.7,3.88512676]
[1764106965745,0.002,2946.8,2946.7,3.39362676]
[1764106965926,0.4721,2946.8,2946.7,3.39362676]
[1764106967458,0.4721,2946.8,2946.5,6.78770644]
[1764106968326,0.4721,2946.8,2946.5,3.39384933]
[1764106968743,0.9674,2946.8,2946.5,3.39384933]
[1764106969177,0.9674,2946.8,2946.5,6.78770644]
[1764106969378,0.9674,2946.8,2946.5,3.39384933]
[1764106969845,0.1919,2946.6,2946.5,4.11944344]
[1764106971042,0.002,2946.8,2946.5,7.97810055]
[1764106972255,0.4736,2946.6,2946.0,0.001]
[1764106972581,0.4708,2946.1,2946.0,4.12102723]
[1764106973789,0.4927,2946.4,2946.0,7.51546035]
[1764106974851,0.4736,2946.1,2946.0,4.12102723]
[1764106976746,0.9663,2946.1,2946.0,4.12102723]
[1764106976983,0.9663,2946.1,2946.0,0.72659411]
[1764106977275,0.9663,2946.1,2946.0,4.12102723]
[1764106979780,1.1823,2946.1,2946.0,0.001]
[1764106980082,1.50026943,2946.1,2946.0,0.001]
[1764106980255,0.6886,2946.1,2946.0,0.001]
[1764106980864,0.6886,2946.1,2946.0,3.39543312]
[1764106981089,0.6886,2946.1,2946.0,0.001]
[1764106981292,1.1456,2946.1,2946.0,0.001]
[1764106981696,4.857817,2946.1,2946.0,0.001]
[1764106983865,5.5899371,2946.1,2946.0,0.001]
[1764106984462,5.58966533,2946.1,2946.0,0.001]
[1764106985302,9.55657733,2946.1,2946.0,0.001]
[1764106985467,5.37466533,2946.1,2946.0,0.001]
[1764106985794,5.58966533,2946.1,2946.0,0.001]
[1764106987803,4.857817,2946.1,2946.0,0.001]
[1764106987976,4.53991791,2946.1,2946.0,0.001]
[1764106988183,4.85716674,2946.1,2946.0,0.001]
[1764106996429,4.64216674,2946.1,2946.0,0.001]
[1764106996605,4.85716674,2946.1,2946.0,0.001]
[1764106999422,4.64216674,2946.1,2946.0,0.001]
[1764106999628,4.85716674,2946.1,2946.0,0.001]
[1764107002839,5.58895433,2946.1,2946.0,0.001]
[1764107007422,6.49793982,2946.1,2946.0,0.001]
[1764107008149,5.58895433,2946.1,2946.0,0.001]
[1764107008450,6.49793982,2946.1,2946.0,0.001]
[1764107009164,7.53566108,2946.1,2946.0,0.001]
[1764107009463,13.08306908,2946.1,2946.0,0.001]
[1764107009633,11.86195644,2946.1,2946.0,0.001]
[1764107010036,18.23195644,2946.1,2946.0,0.001]
[1764107010236,20.06486833,2946.1,2946.0,0.001]
[1764107010525,26.61822533,2946.1,2946.0,0.001]
[1764107011052,25.49628733,2946.1,2946.0,0.001]
[1764107011422,31.07238033,2946.1,2946.0,0.001]
[1764107011746,27.49438033,2946.1,2946.0,0.001]
[1764107012059,25.32675233,2946.1,2946.0,0.001]
[1764107012359,14.92296433,2946.1,2946.0,0.001]
[1764107012549,27.90865571,2946.1,2946.0,0.001]
[1764107013056,27.11165571,2946.1,2946.0,0.001]
[1764107013423,26.65229071,2946.1,2946.0,0.001]
[1764107014056,28.39737882,2946.1,2946.0,0.001]
[1764107014258,28.39737882,2946.1,2945.7,0.001]
[1764107014259,14.19293311,2945.8,2945.7,0.001]
[1764107014560,33.01711225,2945.8,2945.7,0.001]
[1764107014764,24.01889325,2945.8,2945.7,0.001]
[1764107015145,27.41355683,2945.8,2945.7,0.001]
[1764107015347,19.06209092,2945.8,2945.7,0.001]
[1764107015554,21.74084992,2945.8,2945.7,0.001]
[1764107016158,20.23484992,2945.8,2945.7,0.001]
[1764107016466,13.90295903,2945.8,2945.7,0.001]
[1764107016834,14.03903636,2945.8,2945.7,0.001]
[1764107017026,18.82325936,2945.8,2945.7,0.001]
[1764107017226,18.52825936,2945.8,2945.7,0.001]
[1764107017535,14.03903636,2945.8,2945.7,0.001]
[1764107017736,17.04492836,2945.8,2945.7,0.001]
[1764107018324,12.81857144,2945.8,2945.7,0.001]
[1764107018526,16.57792836,2945.8,2945.7,0.001]
[1764107018727,14.03903636,2945.8,2945.7,0.001]
[1764107019066,16.58092836,2945.8,2945.7,0.001]
[1764107019230,20.22781617,2945.8,2945.7,0.001]
[1764107019428,25.74659317,2945.8,2945.7,0.001]
[1764107020160,22.23440025,2945.8,2945.7,0.001]
[1764107020563,23.45486517,2945.8,2945.7,0.001]
[1764107021255,23.23486517,2945.8,2945.7,0.001]
[1764107021458,24.45365217,2945.8,2945.7,0.001]
[1764107022458,17.68592417,2945.8,2945.7,0.001]
[1764107022758,26.43226617,2945.8,2945.7,0.001]
[1764107023866,26.83777017,2945.8,2945.7,0.001]
[1764107024235,25.61730525,2945.8,2945.7,0.001]
[1764107024666,28.77939025,2945.8,2945.7,0.001]
[1764107025634,38.71866425,2945.8,2945.7,0.001]
[1764107025831,21.30008425,2945.8,2945.7,0.001]
[1764107026234,18.92437225,2945.8,2945.7,0.001]
[1764107026539,20.48504525,2945.8,2945.7,0.001]
[1764107026762,20.20423825,2945.8,2945.7,0.001]
[1764107027566,22.84951225,2945.8,2945.7,0.001]
[1764107028270,22.34695025,2945.8,2945.7,0.001]
[1764107028564,24.44757825,2945.8,2945.7,0.001]
[1764107028770,23.00086825,2945.8,2945.7,0.001]
[1764107029577,16.87096325,2945.8,2945.7,0.001]
[1764107029763,23.68511125,2945.8,2945.7,0.001]
[1764107029960,20.90823225,2945.8,2945.7,0.001]
[1764107030554,18.09064469,2945.8,2945.7,0.001]
[1764107030759,20.30384769,2945.8,2945.7,0.001]
[1764107031477,20.37693769,2945.8,2945.7,0.001]
[1764107031781,21.34706369,2945.8,2945.7,0.001]
[1764107031969,18.09064469,2945.8,2945.7,0.001]
[1764107032669,20.63493769,2945.8,2945.7,0.001]
[1764107033373,18.0914665,2945.8,2945.7,0.001]
[1764107033567,20.7870695,2945.8,2945.7,0.001]
[1764107033772,19.32849725,2945.8,2945.7,0.001]
[1764107034182,19.10895925,2945.8,2945.7,0.001]
[1764107034387,13.00907544,2945.8,2945.7,0.001]
[1764107034682,13.22407544,2945.8,2945.7,0.001]
[1764107035363,16.04771544,2945.8,2945.7,0.001]
[1764107035677,13.22407544,2945.8,2945.7,0.001]
[1764107036289,15.05616835,2945.8,2945.7,0.001]
[1764107036783,13.96346435,2945.8,2945.7,0.001]
[1764107036988,13.11214285,2945.8,2945.7,0.456]
[1764107037192,11.16477733,2945.8,2945.7,0.456]
[1764107037491,11.89037144,2945.8,2945.7,0.456]
[1764107037874,11.67537144,2945.8,2945.7,0.456]
[1764107038192,11.89037144,2945.8,2945.7,0.456]
[1764107038394,13.60814285,2945.8,2945.7,0.001]
[1764107039797,12.89714285,2945.8,2945.7,0.9432]
[1764107040018,13.11214285,2945.8,2945.7,0.4809]
[1764107040897,13.11214285,2945.8,2945.7,0.001]
[1764107041102,13.60384285,2945.8,2945.7,0.001]
[1764107041402,14.09514285,2945.8,2945.7,0.001]
[1764107042704,13.60384285,2945.8,2945.7,0.001]
[1764107042903,16.03700144,2945.8,2945.7,0.001]
[1764107043100,17.25987522,2945.8,2945.7,0.001]
[1764107043810,14.09624522,2945.8,2945.7,0.001]
[1764107044010,17.09097322,2945.8,2945.7,0.001]
[1764107044985,15.86809944,2945.8,2945.7,0.001]
[1764107045488,27.94762535,2945.8,2945.7,0.001]
[1764107045689,18.37974135,2945.8,2945.7,0.001]
[1764107046617,25.13723735,2945.8,2945.7,0.001]
[1764107047536,25.26788935,2945.8,2945.7,0.001]
[1764107047687,24.39288935,2945.8,2945.7,0.001]
[1764107048187,18.16518735,2945.8,2945.7,0.001]
[1764107048396,15.11096835,2945.8,2945.7,0.001]
[1764107048590,17.04593044,2945.8,2945.7,0.001]
[1764107049108,20.88712344,2945.8,2945.7,0.001]
[1764107049917,1.13109811,2945.7,2945.6,0.001]
[1764107050119,16.84669658,2945.7,2945.6,0.001]
[1764107050421,15.50869858,2945.7,2945.6,0.001]
[1764107050722,15.64478378,2945.7,2945.6,0.001]
[1764107051088,18.97756378,2945.7,2945.6,0.001]
[1764107051810,18.46330378,2945.7,2945.6,0.001]
[1764107052024,28.22808261,2945.7,2945.6,0.001]
[1764107052196,29.64493461,2945.7,2945.6,0.001]
[1764107052396,21.30402661,2945.7,2945.6,0.001]
[1764107053138,23.63127261,2945.7,2945.6,0.001]
[1764107053304,21.72556661,2945.7,2945.6,0.001]
[1764107054216,23.47964361,2945.7,2945.6,0.001]
[1764107054806,20.88971761,2945.7,2945.6,0.001]
[1764107055133,21.74193261,2945.7,2945.6,0.001]
[1764107055635,19.91286665,2945.7,2945.6,0.001]
[1764107056146,23.17348365,2945.7,2945.6,0.001]
[1764107057128,21.77708565,2945.7,2945.6,0.001]
[1764107058844,23.61149261,2945.7,2945.6,0.001]
[1764107059249,23.61489261,2945.7,2945.6,0.001]
[1764107060250,26.23611061,2945.7,2945.6,0.001]
[1764107060641,24.40170365,2945.7,2945.6,0.001]
[1764107060953,23.21408643,2945.7,2945.6,0.001]
[1764107061253,18.22928343,2945.7,2945.6,0.001]
[1764107061456,24.43593443,2945.7,2945.6,0.001]
[1764107061662,24.16885443,2945.7,2945.6,0.001]
[1764107062019,0.4532,2945.0,2943.9,0.1729]
[1764107062314,0.91685499,2944.7,2943.9,0.1729]
[1764107062518,5.57682308,2944.7,2944.4,0.4961]
[1764107062736,5.57682308,2944.7,2944.6,0.4948]
[1764107063149,5.85792308,2944.7,2944.6,0.4948]
[1764107063354,5.15606809,2944.7,2944.6,0.9909]
[1764107063559,5.15606809,2944.7,2944.6,0.4948]
[1764107064262,16.06206999,2944.7,2944.6,0.001]
[1764107064462,11.6648742,2944.7,2944.6,0.001]
[1764107065250,10.9758742,2944.7,2944.6,0.001]
[1764107065552,9.3835282,2944.7,2944.6,0.001]
[1764107065752,9.8575282,2944.7,2944.6,0.001]
[1764107066240,11.07796236,2944.7,2944.6,0.001]
[1764107066471,15.82924636,2944.7,2944.6,0.001]
[1764107067164,10.86343336,2944.7,2944.6,0.001]
[1764107067370,12.70664636,2944.7,2944.6,0.001]
[1764107068471,11.7603542,2944.7,2944.6,0.001]
[1764107068950,11.3023982,2944.7,2944.6,0.001]
[1764107069780,10.5948542,2944.7,2944.6,0.001]
[1764107069985,9.9913982,2944.7,2944.6,0.001]
[1764107070482,13.6384242,2944.7,2944.6,0.001]
[1764107071664,19.1362302,2944.7,2944.6,0.001]
[1764107072389,14.8010952,2944.7,2944.6,0.001]
[1764107072562,13.3978762,2944.7,2944.6,0.001]
[1764107072774,12.8528762,2944.7,2944.6,0.001]
[1764107073159,12.3848552,2944.7,2944.6,0.001]
[1764107073364,12.3848552,2944.7,2944.6,0.4948]
[1764107073365,10.87755021,2944.7,2944.6,0.4948]
[1764107074481,10.23987021,2944.7,2944.6,0.4948]
[1764107075591,9.83436621,2944.7,2944.6,0.4948]
[1764107075993,9.61936621,2944.7,2944.6,0.4948]
[1764107076176,5.3855622,2944.7,2944.6,0.9909]
[1764107076700,5.1705622,2944.7,2944.6,0.9909]
[1764107076995,5.3855622,2944.7,2944.6,0.9909]
[1764107080495,5.3855622,2944.7,2944.6,0.4948]
[1764107081198,5.3855622,2944.7,2944.6,0.9909]
[1764107081497,5.3855622,2944.7,2944.6,0.001]
[1764107081868,5.8387622,2944.7,2944.6,0.001]
[1764107082268,5.3855622,2944.7,2944.6,0.001]
[1764107082598,5.3855622,2944.7,2944.6,0.4948]
[1764107083297,5.8387622,2944.7,2944.6,0.001]
[1764107083485,13.18706021,2944.7,2944.6,0.001]
[1764107083668,10.78564421,2944.7,2944.6,0.001]
[1764107083992,9.74313121,2944.7,2944.6,0.001]
[1764107084186,7.22654521,2944.7,2944.6,0.001]
[1764107084388,6.3127622,2944.7,2944.6,0.001]
[1764107084587,8.5185762,2944.7,2944.6,0.001]
[1764107085165,9.3218312,2944.7,2944.6,0.001]
[1764107085801,8.6402512,2944.7,2944.6,0.001]
[1764107086302,11.5720952,2944.7,2944.6,0.001]
[1764107086799,10.5568182,2944.7,2944.6,0.001]
[1764107087270,10.5228332,2944.7,2944.6,0.001]
[1764107087792,17.2973372,2944.7,2944.6,0.001]
[1764107087987,17.43347473,2944.7,2944.6,0.001]
[1764107088300,17.83892189,2944.7,2944.6,0.001]
[1764107088502,13.75483789,2944.7,2944.6,0.001]
[1764107088812,11.5395622,2944.7,2944.6,0.4948]
[1764107089017,14.1999852,2944.7,2944.6,0.9909]
[1764107089194,14.1999852,2944.7,2944.6,0.4948]
[1764107090082,14.6531852,2944.7,2944.6,0.001]
[1764107090446,15.87361936,2944.7,2944.6,0.001]
[1764107091218,24.4638312,2944.7,2944.6,0.001]
[1764107091520,25.96426175,2944.7,2944.6,0.001]
[1764107092015,18.2724612,2944.7,2944.6,0.001]
[1764107092397,18.4754612,2944.7,2944.6,0.001]
[1764107092724,20.71597175,2944.7,2944.6,0.001]
[1764107093020,20.85210511,2944.7,2944.6,0.001]
[1764107093427,21.00559911,2944.7,2944.6,0.001]
[1764107094188,12.29619956,2944.7,2944.6,0.4785]
[1764107094529,12.08119956,2944.7,2944.6,0.4785]
[1764107094686,11.7545622,2944.7,2944.6,0.9301]
[1764107098935,16.28902429,2944.7,2944.6,0.001]
[1764107099108,25.46940829,2944.7,2944.6,0.001]
[1764107099305,23.47345726,2944.7,2944.6,0.001]
[1764107099504,6.21265711,2944.6,2944.5,0.001]
[1764107099705,13.3681211,2944.6,2944.5,0.001]
[1764107100238,12.6510291,2944.6,2944.5,0.001]
[1764107100540,10.95129669,2944.6,2944.5,0.001]
[1764107101033,24.14655069,2944.6,2944.5,0.001]
[1764107101427,23.77155069,2944.6,2944.5,0.001]
[1764107101627,15.13301209,2944.6,2944.5,0.9369]
[1764107101935,1.26403642,2944.6,2944.5,0.9369]
[1764107102916,1.26403642,2944.6,2944.5,0.001]
[1764107102917,9.67743764,2944.6,2944.5,0.001]
[1764107103135,9.98355218,2944.6,2944.5,0.001]